[Event "11th Festival Palmanova-B 2022"]
[Site "Strassoldo"]
[Date "2022.12.08"]
[Round "1.1"]
[White "Orsatti, Marcello"]
[Black "Poli, Diego"]
[Result "1/2-1/2"]
[ECO "A25"]
[WhiteElo "1862"]
[BlackElo "1646"]
[Annotator "NA RC COMBH"]
[PlyCount "112"]
[EventDate "2022.12.08"]
[EventType "swiss"]
[EventCountry "ITA"]
[SourceTitle "playchess.com"]
[Source "ChessBase"]
[SourceQuality "1"]
[TimeControl "5400+30"]

1. c4 {[%emt 0:00:05]} e5 {[%emt 0:00:56]} 2. g3 {[%emt 0:00:06]} Nf6 {[%emt 0:00:31]} 3. Bg2 {[%emt 0:00:06]} Nc6 {[%emt 0:01:10]} 4. Nc3 {[%emt 0:00:06]} Bb4 {[%emt 0:01:07]} 5. a3 {[%emt 0:02:37]} Bxc3 {[%emt 0:03:47]} 6. bxc3 {[%emt 0:00:07]} O-O {[%emt 0:00:11]} 7. Rb1 {[%emt 0:01:22]} d6 {[%emt 0:02:44]} 8. Nf3 {[%emt 0:00:35]} e4 {[%emt 0:17:16]} 9. Nd4 {[%emt 0:02:17]} Ne5 {[%emt 0:04:31]} 10. Qb3 {[%emt 0:04:11]} Ned7 {[%emt 0:04:06]} 11. Qc2 {[%emt 0:02:58]} Nc5 {[%emt 0:01:05]} 12. O-O {[%emt 0:02:04]} c6 {[%emt 0:00:21]} 13. a4 {[%emt 0:04:20]} Qa5 {[%emt 0:04:11]} 14. Ba3 {[%emt 0:01:43]} Re8 {[%emt 0:10:04]} 15. Rfe1 {[%emt 0:10:41]} Qc7 {[%emt 0:12:17]} 16. h3 {[%emt 0:10:42]} h5 {[%emt 0:04:59]} 17. d3 {[%emt 0:18:24]} exd3 {[%emt 0:00:12]} 18. exd3 {[%emt 0:00:31]} Bd7 {[%emt 0:00:04]} 19. Bxc5 {[%emt 0:03:59]} dxc5 {[%emt 0:00:14]} 20. Nb3 {[%emt 0:00:32]} b6 {[%emt 0:08:21]} 21. a5 {[%emt 0:01:07]} Rxe1+ {[%emt 0:00:52]} 22. Rxe1 {[%emt 0:00:22]} Re8 {[%emt 0:00:09]} 23. Rxe8+ {[%emt 0:01:42]} Nxe8 {[%emt 0:00:22]} 24. Qe2 {[%emt 0:00:23]} Qc8 {[%emt 0:01:13]} 25. Qxh5 {[%emt 0:02:18]} Nd6 {[%emt 0:06:38]} 26. Qe5 {[%emt 0:01:50]} Nb7 {[%emt 0:01:55]} 27. axb6 {[%emt 0:00:34]} axb6 {[%emt 0:00:17]} 28. Nd2 {[%emt 0:00:41]} Qe8 {[%emt 0:04:19]} 29. Nf3 {[%emt 0:01:56]} b5 {[%emt 0:04:23]} 30. Qc7 {[%emt 0:04:40]} Qc8 {[%emt 0:01:25]} 31. Qxc8+ {[%emt 0:04:52]} Bxc8 {[%emt 0:00:06]} 32. cxb5 {[%emt 0:01:21]} cxb5 {[%emt 0:00:09]} 33. Ne5 {[%emt 0:00:17]} b4 {[%emt 0:00:41]} 34. cxb4 {[%emt 0:01:15]} cxb4 {[%emt 0:00:07]} 35. Bd5 {[%emt 0:00:36]} Na5 {[%emt 0:03:58]} 36. Nxf7 {[%emt 0:03:50]} Kf8 {[%emt 0:00:05]} 37. Nd6 {[%emt 0:01:14]} Bd7 {[%emt 0:00:14]} 38. Nc4 {[%emt 0:02:16]} Nxc4 {[%emt 0:01:42]} 39. dxc4 {[%emt 0:00:44]} Bxh3 {[%emt 0:01:44]} 40. f3 {[%emt 0:00:48]} Bf5 {[%emt 0:00:24]} 41. Kf2 {[%emt 0:00:58]} b3 {[%emt 0:00:21]} 42. c5 {[%emt 0:01:29]} b2 {[%emt 0:00:07]} 43. Ba2 {[%emt 0:00:14]} b1=Q {[%emt 0:00:10]} 44. Bxb1 {[%emt 0:09:37]} Bxb1 {[%emt 0:00:09]} 45. Ke3 {[%emt 0:00:00]} Ke7 {[%emt 0:00:28]} 46. g4 {[%emt 0:00:00]} Ba2 {[%emt 0:00:27]} 47. f4 {[%emt 0:00:00]} Be6 {[%emt 0:01:02]} 48. f5 {[%emt 0:00:00]} Bd7 {[%emt 0:00:15]} 49. Kf4 {[%emt 0:00:00]} Kf7 {[%emt 0:02:12]} 50. g5 {[%emt 0:00:00]} Ke7 {[%emt 0:00:11]} 51. Ke5 {[%emt 0:00:00]} Bc6 {[%emt 0:00:27]} 52. f6+ {[%emt 0:00:00]} gxf6+ {[%emt 0:00:10]} 53. gxf6+ {[%emt 0:00:00]} Kf7 {[%emt 0:00:13]} 54. Kd6 {[%emt 0:00:51]} Ba4 {[%emt 0:00:33]} 55. c6 {[%emt 0:00:18]} Bxc6 {[%emt 0:00:03]} 56. Kxc6 {[%emt 0:00:07]} Kxf6 {[%emt 0:00:01]} 1/2-1/2

[Event "11th Festival Palmanova-B 2022"]
[Site "Strassoldo"]
[Date "2022.12.08"]
[Round "1.2"]
[White "Menon, Michele"]
[Black "Giuriato, Sergio"]
[Result "1-0"]
[ECO "D35"]
[WhiteElo "1599"]
[BlackElo "1836"]
[Annotator "NA RC COMBH"]
[PlyCount "85"]
[EventDate "2022.12.08"]
[EventType "swiss"]
[EventCountry "ITA"]
[SourceTitle "playchess.com"]
[Source "ChessBase"]
[SourceQuality "1"]
[TimeControl "5400+30"]

1. Nf3 {[%emt 0:00:04]} Nf6 {[%emt 0:00:18]} 2. c4 {[%emt 0:00:29]} e6 {[%emt 0:00:46]} 3. g3 {[%emt 0:00:54]} d5 {[%emt 0:00:58]} 4. cxd5 {[%emt 0:01:44]} exd5 {[%emt 0:00:37]} 5. Bg2 {[%emt 1:29:49]} Bd6 {[%emt 0:03:32]} 6. O-O {[%emt 0:00:00]} O-O {[%emt 0:00:17]} 7. d4 {[%emt 0:00:00]} c6 {[%emt 0:01:02]} 8. Nc3 {[%emt 0:00:00]} Nbd7 {[%emt 0:04:04]} 9. Bg5 {[%emt 0:00:00]} h6 {[%emt 0:03:01]} 10. Bd2 {[%emt 0:00:00]} Re8 {[%emt 0:01:34]} 11. e3 {[%emt 0:00:00]} b6 {[%emt 0:07:06]} 12. a3 {[%emt 0:00:00]} Bb7 {[%emt 0:06:24]} 13. b4 {[%emt 0:00:00]} Qe7 {[%emt 0:03:23]} 14. Rb1 {[%emt 0:00:00]} Rad8 {[%emt 0:01:56]} 15. Qc2 {[%emt 0:00:00]} Nf8 {[%emt 0:14:18]} 16. Nh4 {[%emt 0:00:00]} Bb8 {[%emt 0:01:28]} 17. Rfe1 {[%emt 0:00:00]} Qd7 {[%emt 0:01:05]} 18. Nf5 {[%emt 0:00:00]} Ne6 {[%emt 0:04:29]} 19. e4 {[%emt 0:00:00]} dxe4 {[%emt 0:11:38]} 20. Nxe4 {[%emt 0:00:00]} Nxe4 {[%emt 0:00:12]} 21. Bxe4 {[%emt 0:00:00]} Ng5 {[%emt 0:32:52]} 22. Bxg5 {[%emt 0:00:00]} hxg5 {[%emt 0:00:00]} 23. Rbd1 {[%emt 0:00:00]} g6 {[%emt 0:00:00]} 24. Ne3 {[%emt 0:00:00]} Qe6 {[%emt 0:00:00]} 25. Bf3 {[%emt 0:00:00]} Qf6 {[%emt 0:00:00]} 26. Kg2 {[%emt 0:00:00]} Rd6 {[%emt 0:00:00]} 27. Ng4 {[%emt 0:00:00]} Qd8 {[%emt 0:00:00]} 28. Rxe8+ {[%emt 0:00:00]} Qxe8 {[%emt 0:00:00]} 29. Qc3 {[%emt 0:00:00]} f5 {[%emt 0:00:00]} 30. Re1 {[%emt 0:00:00]} Qf8 {[%emt 0:00:00]} 31. Ne5 {[%emt 0:00:00]} g4 {[%emt 0:00:00]} 32. Bxc6 {[%emt 0:00:00]} Rxc6 {[%emt 0:00:01]} 33. Nxc6 {[%emt 0:00:00]} f4 {[%emt 0:01:18]} 34. gxf4 {[%emt 0:00:00]} Bxf4 {[%emt 0:01:02]} 35. d5 {[%emt 0:00:00]} Kh7 {[%emt 0:02:31]} 36. b5 {[%emt 0:00:00]} Bd6 {[%emt 0:01:51]} 37. Re6 {[%emt 0:00:00]} Qf4 {[%emt 0:01:17]} 38. Rf6 {[%emt 0:01:07]} Qxh2+ {[%emt 0:00:00]} 39. Kf1 {[%emt 0:00:09]} Qh1+ {[%emt 0:00:00]} 40. Ke2 {[%emt 0:00:06]} Qxd5 {[%emt 0:00:32]} 41. Qd3 {[%emt 0:00:51]} Qxd3+ {[%emt 0:00:47]} 42. Kxd3 {[%emt 0:00:02]} Bxa3 {[%emt 0:00:31]} 43. Rf7+ {[%emt 0:16:45]} 1-0

[Event "11th Festival Palmanova-B 2022"]
[Site "Strassoldo"]
[Date "2022.12.09"]
[Round "2.2"]
[White "Ferrarini, Zeno"]
[Black "Predan, Luca"]
[Result "0-1"]
[ECO "A37"]
[WhiteElo "1519"]
[BlackElo "1750"]
[Annotator "NA RC COMBH"]
[PlyCount "94"]
[EventDate "2022.12.08"]
[EventType "swiss"]
[EventCountry "ITA"]
[SourceTitle "playchess.com"]
[Source "ChessBase"]
[SourceQuality "1"]
[TimeControl "5400+30"]

1. c4 {[%emt 0:06:42]} c5 {[%emt 0:00:12]} 2. Nc3 {[%emt 0:00:13]} Nc6 {[%emt 0:00:06]} 3. Nf3 {[%emt 0:00:07]} g6 {[%emt 0:00:08]} 4. g3 {[%emt 0:00:38]} Bg7 {[%emt 0:00:09]} 5. Bg2 {[%emt 0:00:14]} e6 {[%emt 0:00:07]} 6. e3 {[%emt 0:01:34]} Nge7 {[%emt 0:00:11]} 7. O-O {[%emt 0:00:14]} O-O {[%emt 0:00:06]} 8. a3 {[%emt 0:02:28]} a6 {[%emt 0:03:28]} 9. Rb1 {[%emt 0:00:27]} Rb8 {[%emt 0:07:25]} 10. b4 {[%emt 0:06:36]} cxb4 {[%emt 0:00:06]} 11. axb4 {[%emt 0:00:06]} b5 {[%emt 0:00:04]} 12. cxb5 {[%emt 0:01:07]} axb5 {[%emt 0:00:06]} 13. d4 {[%emt 0:00:25]} d5 {[%emt 0:00:22]} 14. Qc2 {[%emt 0:06:43]} Qb6 {[%emt 0:01:50]} 15. Bd2 {[%emt 0:03:47]} Nf5 {[%emt 0:02:50]} 16. Ne1 {[%emt 0:03:21]} Nd6 {[%emt 0:00:28]} 17. Nd3 {[%emt 0:00:12]} Nc4 {[%emt 0:00:43]} 18. Rb3 {[%emt 0:00:12]} Bxd4 {[%emt 0:03:04]} 19. Ne2 {[%emt 0:12:17]} Bg7 {[%emt 0:02:11]} 20. Bc3 {[%emt 0:00:09]} Rd8 {[%emt 0:42:43]} 21. Nc5 {[%emt 0:01:26]} Bf8 {[%emt 0:01:59]} 22. Nd3 {[%emt 0:00:51]} Bg7 {[%emt 0:03:27]} 23. Nc5 {[%emt 0:00:10]} Ra8 {[%emt 0:10:42]} 24. Bxg7 {[%emt 0:00:19]} Kxg7 {[%emt 0:00:16]} 25. Qc3+ {[%emt 0:00:33]} f6 {[%emt 0:00:15]} 26. Nf4 {[%emt 0:00:23]} Kf7 {[%emt 0:03:23]} 27. Rd1 {[%emt 0:01:12]} Ra7 {[%emt 0:01:22]} 28. Bxd5 {[%emt 0:02:21]} exd5 {[%emt 0:02:49]} 29. Nxd5 {[%emt 0:00:07]} Rxd5 {[%emt 0:00:13]} 30. Rxd5 {[%emt 0:00:06]} Ne7 {[%emt 0:01:31]} 31. Rd1 {[%emt 0:06:00]} Qc6 {[%emt 0:01:47]} 32. h4 {[%emt 0:02:51]} Qf3 {[%emt 0:00:56]} 33. Ne4 {[%emt 0:05:03]} Qxd1+ {[%emt 0:02:09]} 34. Kh2 {[%emt 0:00:19]} Nd5 {[%emt 0:00:20]} 35. Qd4 {[%emt 0:00:47]} Qxd4 {[%emt 0:00:06]} 36. exd4 {[%emt 0:00:05]} Ra2 {[%emt 0:00:39]} 37. Kg2 {[%emt 0:00:33]} Bf5 {[%emt 0:00:31]} 38. Nc5 {[%emt 0:00:17]} Nde3+ {[%emt 0:01:31]} 39. Kg1 {[%emt 0:00:07]} Ra1+ {[%emt 0:01:29]} 40. Kh2 {[%emt 0:00:11]} Ng4+ {[%emt 0:00:10]} 41. Kg2 {[%emt 0:00:14]} Ra2 {[%emt 0:00:12]} 42. Rf3 {[%emt 0:00:38]} Nce3+ {[%emt 0:00:08]} 43. Rxe3 {[%emt 0:00:53]} Nxe3+ {[%emt 0:00:13]} 44. Kf3 {[%emt 0:00:08]} Nd1 {[%emt 0:00:15]} 45. g4 {[%emt 0:00:28]} Rxf2+ {[%emt 0:00:07]} 46. Kg3 {[%emt 0:00:10]} Bc2 {[%emt 0:00:52]} 47. d5 {[%emt 0:00:13]} Rd2 {[%emt 0:00:16]} 0-1

[Event "11th Festival Palmanova-B 2022"]
[Site "Strassoldo"]
[Date "2022.12.09"]
[Round "3.1"]
[White "Predan, Luca"]
[Black "Gasperi, Fosco"]
[Result "1/2-1/2"]
[ECO "A25"]
[WhiteElo "1750"]
[BlackElo "1725"]
[Annotator "NA RC COMBH"]
[PlyCount "45"]
[EventDate "2022.12.08"]
[EventType "swiss"]
[EventCountry "ITA"]
[SourceTitle "playchess.com"]
[Source "ChessBase"]
[SourceQuality "1"]
[TimeControl "5400+30"]

1. c4 {[%emt 0:00:05]} e5 {[%emt 0:01:41]} 2. Nc3 {[%emt 0:00:15]} Nc6 {[%emt 0:00:28]} 3. g3 {[%emt 0:00:19]} f5 {[%emt 0:00:20]} 4. Bg2 {[%emt 0:00:44]} Nf6 {[%emt 0:00:21]} 5. e3 {[%emt 0:00:26]} d5 {[%emt 0:00:34]} 6. cxd5 {[%emt 0:01:32]} Nb4 {[%emt 0:00:19]} 7. d3 {[%emt 0:08:11]} Nfxd5 {[%emt 0:01:44]} 8. Nxd5 {[%emt 0:00:31]} Nxd5 {[%emt 0:00:14]} 9. a3 {[%emt 0:02:13]} c6 {[%emt 0:05:59]} 10. Ne2 {[%emt 0:00:30]} Bd6 {[%emt 0:02:05]} 11. O-O {[%emt 0:00:30]} Qe7 {[%emt 0:01:46]} 12. Nc3 {[%emt 0:07:41]} Be6 {[%emt 0:00:52]} 13. Nxd5 {[%emt 0:00:24]} Bxd5 {[%emt 0:04:59]} 14. Bxd5 {[%emt 0:01:16]} cxd5 {[%emt 0:00:11]} 15. Qa4+ {[%emt 0:00:15]} Qd7 {[%emt 0:02:49]} 16. Qxd7+ {[%emt 0:00:17]} Kxd7 {[%emt 0:00:08]} 17. Bd2 {[%emt 0:00:55]} Rhc8 {[%emt 0:02:20]} 18. Rac1 {[%emt 0:00:34]} Rxc1 {[%emt 0:00:49]} 19. Rxc1 {[%emt 0:00:08]} Rc8 {[%emt 0:00:27]} 20. Rxc8 {[%emt 0:00:39]} Kxc8 {[%emt 0:00:11]} 21. Bc3 {[%emt 1:13:35]} g6 {[%emt 1:12:43]} 22. d4 e4 23. Kf1 {[%emt 0:01:00]} 1/2-1/2

[Event "11th Festival Palmanova-B 2022"]
[Site "Strassoldo"]
[Date "2022.12.09"]
[Round "3.2"]
[White "Pin, Orlando"]
[Black "Haselsberger, Armin"]
[Result "1-0"]
[ECO "B19"]
[WhiteElo "1630"]
[BlackElo "1671"]
[Annotator "NA RC COMBH"]
[PlyCount "81"]
[EventDate "2022.12.08"]
[EventType "swiss"]
[EventCountry "ITA"]
[SourceTitle "playchess.com"]
[Source "ChessBase"]
[SourceQuality "1"]
[TimeControl "5400+30"]

1. e4 {[%emt 0:02:45]} c6 {[%emt 0:00:43]} 2. d4 {[%emt 0:01:14]} d5 {[%emt 0:00:32]} 3. Nc3 {[%emt 0:00:11]} dxe4 {[%emt 0:00:38]} 4. Nxe4 {[%emt 0:00:04]} Bf5 {[%emt 0:00:42]} 5. Ng3 {[%emt 0:00:06]} Bg6 {[%emt 0:00:46]} 6. h4 {[%emt 0:00:05]} h6 {[%emt 0:00:43]} 7. Nf3 {[%emt 0:00:03]} Nd7 {[%emt 0:00:47]} 8. h5 {[%emt 0:00:48]} Bh7 {[%emt 0:00:40]} 9. Bd3 {[%emt 0:00:07]} Bxd3 {[%emt 0:00:33]} 10. Qxd3 {[%emt 0:00:02]} e6 {[%emt 0:00:37]} 11. Bd2 {[%emt 0:00:02]} Ngf6 {[%emt 0:00:36]} 12. O-O-O {[%emt 0:00:12]} Be7 {[%emt 0:00:36]} 13. Ne4 {[%emt 0:00:16]} Nxe4 {[%emt 0:00:44]} 14. Qxe4 {[%emt 0:00:20]} Nf6 {[%emt 0:00:35]} 15. Qe2 {[%emt 0:00:03]} Qd5 {[%emt 0:00:29]} 16. Kb1 {[%emt 0:01:54]} Qe4 {[%emt 0:00:35]} 17. Rde1 {[%emt 0:09:18]} Qxe2 {[%emt 0:01:48]} 18. Rxe2 {[%emt 0:00:14]} O-O {[%emt 0:01:08]} 19. c4 {[%emt 0:03:42]} Rfd8 {[%emt 0:02:59]} 20. g4 {[%emt 0:02:00]} Rd7 {[%emt 0:13:09]} 21. g5 {[%emt 0:02:16]} hxg5 {[%emt 0:02:38]} 22. Bxg5 {[%emt 0:00:51]} Rad8 {[%emt 0:04:22]} 23. h6 {[%emt 0:06:04]} g6 {[%emt 0:01:17]} 24. Ne5 {[%emt 0:03:13]} Rc7 {[%emt 0:01:58]} 25. Bf4 {[%emt 0:43:31]} Rcc8 {[%emt 0:03:20]} 26. Bg5 {[%emt 0:08:49]} Re8 {[%emt 0:00:31]} 27. f4 {[%emt 0:03:43]} Nh5 {[%emt 0:00:19]} 28. Rg2 {[%emt 0:04:25]} Bxg5 {[%emt 0:05:05]} 29. fxg5 {[%emt 0:01:44]} Rc7 {[%emt 0:03:03]} 30. Rf1 {[%emt 0:01:04]} Ree7 {[%emt 0:02:50]} 31. Rf3 {[%emt 0:00:38]} c5 {[%emt 0:01:39]} 32. Rgf2 {[%emt 0:01:58]} cxd4 {[%emt 0:00:39]} 33. b4 {[%emt 0:00:23]} a5 {[%emt 0:03:16]} 34. a3 {[%emt 0:00:41]} axb4 {[%emt 0:04:46]} 35. axb4 {[%emt 0:00:44]} b5 {[%emt 0:00:49]} 36. c5 {[%emt 0:00:09]} Ra7 {[%emt 0:00:14]} 37. Nc6 {[%emt 0:00:14]} e5 {[%emt 0:00:23]} 38. Nxa7 {[%emt 0:01:25]} Rxa7 {[%emt 0:00:52]} 39. Rxf7 {[%emt 0:00:58]} Rxf7 {[%emt 0:00:01]} 40. Rxf7 {[%emt 0:00:02]} Kxf7 {[%emt 0:00:01]} 41. c6 {[%emt 0:00:17]} 1-0

[Event "11th Festival Palmanova-B 2022"]
[Site "Strassoldo"]
[Date "2022.12.10"]
[Round "4.1"]
[White "Orsatti, Marcello"]
[Black "Pin, Orlando"]
[Result "1-0"]
[ECO "D04"]
[WhiteElo "1862"]
[BlackElo "1630"]
[Annotator "NA RC COMBH"]
[PlyCount "99"]
[EventDate "2022.12.08"]
[EventType "swiss"]
[EventCountry "ITA"]
[SourceTitle "playchess.com"]
[Source "ChessBase"]
[SourceQuality "1"]
[TimeControl "5400+30"]

1. Nf3 {[%emt 0:00:57]} d5 {[%emt 0:00:12]} 2. d4 {[%emt 0:01:27]} Nf6 {[%emt 0:00:06]} 3. e3 {[%emt 0:01:27]} c5 {[%emt 0:01:46]} 4. Be2 {[%emt 0:04:01]} h6 {[%emt 0:02:28]} 5. Nbd2 {[%emt 0:00:50]} Bf5 {[%emt 0:03:54]} 6. dxc5 {[%emt 0:06:34]} Nbd7 {[%emt 0:03:55]} 7. b4 {[%emt 0:12:08]} Rc8 {[%emt 0:04:28]} (7... a5 $16) 8. Bb2 {[%emt 0:05:45]} b6 {[%emt 0:04:07]} (8... e6 $142 9. c4 b6) 9. c6 {[%emt 0:02:22]} Nb8 {[%emt 0:05:37]} 10. b5 {[%emt 0:00:37]} e6 {[%emt 0:01:13]} 11. O-O {[%emt 0:01:55]} Bc5 {[%emt 0:01:19]} 12. c4 {[%emt 0:06:32]} O-O {[%emt 0:00:48]} 13. cxd5 {[%emt 0:00:32]} exd5 {[%emt 0:00:44]} 14. Nb3 {[%emt 0:02:26]} Ne4 {[%emt 0:09:10]} 15. Nbd4 {[%emt 0:03:05]} Bh7 {[%emt 0:00:50]} 16. Nd2 {[%emt 0:01:45]} Qg5 {[%emt 0:09:51]} 17. Nxe4 {[%emt 0:02:36]} Bxe4 {[%emt 0:00:09]} 18. Nf3 {[%emt 0:04:23]} Qe7 {[%emt 0:02:17]} 19. Bd3 {[%emt 0:00:47]} Ba3 {[%emt 0:02:08]} 20. Bxa3 {[%emt 0:01:48]} Qxa3 {[%emt 0:01:14]} 21. Bxe4 {[%emt 0:01:11]} dxe4 {[%emt 0:00:15]} 22. Nd4 {[%emt 0:00:14]} a6 {[%emt 0:00:20]} 23. Qb3 {[%emt 0:05:45]} Qxb3 {[%emt 0:00:59]} 24. axb3 {[%emt 0:00:02]} axb5 {[%emt 0:00:19]} 25. Rfc1 {[%emt 0:00:06]} Rc7 {[%emt 0:03:00]} 26. Ra8 {[%emt 0:01:28]} b4 {[%emt 0:04:11]} 27. g4 {[%emt 0:00:39]} Nd7 {[%emt 0:06:46]} 28. Rxf8+ {[%emt 0:02:12]} Kxf8 {[%emt 0:00:56]} 29. Nb5 {[%emt 0:02:20]} Rc8 {[%emt 0:00:20]} 30. c7 {[%emt 0:01:05]} Nc5 {[%emt 0:01:03]} 31. Rc4 {[%emt 0:01:42]} Ke7 {[%emt 0:02:17]} 32. Rxb4 {[%emt 0:00:15]} Ne6 {[%emt 0:01:25]} 33. Rxe4 {[%emt 0:01:07]} Kd7 {[%emt 0:01:45]} 34. Rc4 {[%emt 0:00:52]} Nxc7 {[%emt 0:01:27]} 35. Rxc7+ {[%emt 0:02:48]} Rxc7 {[%emt 0:01:39]} 36. Nxc7 {[%emt 0:00:08]} Kxc7 {[%emt 0:00:05]} 37. Kf1 {[%emt 0:00:12]} Kd6 {[%emt 0:00:08]} 38. Ke2 {[%emt 0:00:08]} Ke5 {[%emt 0:02:19]} 39. Kd3 {[%emt 0:00:13]} g5 {[%emt 0:02:54]} 40. f3 {[%emt 0:02:14]} Kd5 {[%emt 0:01:02]} 41. Kc3 {[%emt 0:01:56]} Kc5 {[%emt 0:06:37]} 42. f4 {[%emt 0:02:42]} f6 {[%emt 0:00:26]} 43. fxg5 {[%emt 0:02:12]} hxg5 {[%emt 0:00:09]} 44. e4 {[%emt 0:00:10]} Kd6 {[%emt 0:07:14]} 45. Kd4 {[%emt 0:00:07]} Ke6 {[%emt 0:03:07]} 46. h3 {[%emt 0:02:32]} Kd6 {[%emt 0:00:30]} 47. Kc4 {[%emt 0:00:28]} Kc6 {[%emt 0:00:12]} 48. Kd3 {[%emt 0:07:17]} b5 {[%emt 0:01:54]} 49. Kd4 {[%emt 0:00:37]} Kd6 {[%emt 0:00:04]} 50. b4 {[%emt 0:00:22]} 1-0

[Event "11th Festival Palmanova-B 2022"]
[Site "Strassoldo"]
[Date "2022.12.10"]
[Round "4.2"]
[White "Gasperi, Fosco"]
[Black "Bizzoco, Vito"]
[Result "1/2-1/2"]
[ECO "D15"]
[WhiteElo "1725"]
[BlackElo "1856"]
[Annotator "NA RC COMBH"]
[PlyCount "56"]
[EventDate "2022.12.08"]
[EventType "swiss"]
[EventCountry "ITA"]
[SourceTitle "playchess.com"]
[Source "ChessBase"]
[SourceQuality "1"]
[TimeControl "5400+30"]

1. d4 {[%emt 0:00:30]} d5 {[%emt 0:03:03]} 2. c4 {[%emt 0:00:18]} c6 {[%emt 0:00:09]} 3. Nf3 {[%emt 0:01:25]} Nf6 {[%emt 0:00:16]} 4. Nc3 {[%emt 0:00:50]} a6 {[%emt 0:00:53]} 5. e3 {[%emt 0:01:34]} b5 {[%emt 0:01:48]} 6. b3 {[%emt 0:03:53]} Bg4 {[%emt 0:01:07]} 7. Be2 {[%emt 0:00:24]} e6 {[%emt 0:01:11]} 8. O-O {[%emt 0:00:56]} Nbd7 {[%emt 0:01:10]} 9. Bb2 {[%emt 0:01:04]} Be7 {[%emt 0:03:28]} 10. h3 {[%emt 0:01:16]} Bh5 {[%emt 0:00:25]} 11. Ne5 {[%emt 0:03:20]} Bxe2 {[%emt 0:01:50]} 12. Nxe2 {[%emt 0:00:16]} Nxe5 {[%emt 0:04:41]} 13. dxe5 {[%emt 0:00:11]} Nd7 {[%emt 0:00:24]} 14. cxd5 {[%emt 0:02:47]} cxd5 {[%emt 0:00:25]} 15. Nf4 {[%emt 0:11:06]} O-O {[%emt 0:03:02]} 16. Qg4 {[%emt 0:01:11]} Kh8 {[%emt 0:05:37]} 17. Rac1 {[%emt 0:01:51]} Nc5 {[%emt 0:04:03]} (17... Rc8 $1 $11) 18. Rc2 {[%emt 0:02:29]} (18. Bd4 $5 {[%cal Rd4c5]} Rc8 19. Rc2 $14) 18... Rc8 {[%emt 0:02:17]} (18... a5 $14) 19. Rfc1 {[%emt 0:00:34]} Qd7 $16 {[%emt 0:13:03]} 20. Ba3 {[%emt 0:03:14]} Nxb3 {[%emt 0:05:34]} 21. Nh5 {[%emt 0:04:48]} g6 {[%emt 0:00:14]} 22. Bxe7 $2 {[%emt 0:06:50]} ({Not} 22. axb3 Rxc2 23. Rxc2 gxh5 $11) (22. Rxc8 $18 gxh5 23. Qxh5 (23. Rxf8+ Bxf8 24. Qxh5 Bxa3 $18) 23... Bxa3 24. Rxf8+ Bxf8 25. axb3) 22... Qxe7 {[%emt 0:07:39]} 23. axb3 {[%emt 0:04:58]} Rxc2 {[%emt 0:01:40]} 24. Rxc2 {[%emt 0:00:12]} gxh5 {[%emt 0:00:42]} 25. Qxh5 {[%emt 0:00:13]} Rg8 {[%emt 0:06:06]} 26. f4 {[%emt 0:06:43]} Qb4 {[%emt 0:02:29]} 27. Qxf7 {[%emt 0:03:22]} Qe1+ {[%emt 0:01:40]} 28. Kh2 {[%emt 0:00:12]} Qg3+ {[%emt 0:29:34]} 1/2-1/2

[Event "11th Festival Palmanova-B 2022"]
[Site "Strassoldo"]
[Date "2022.12.10"]
[Round "5.1"]
[White "Bizzoco, Vito"]
[Black "Orsatti, Marcello"]
[Result "1-0"]
[ECO "A37"]
[WhiteElo "1856"]
[BlackElo "1862"]
[Annotator "NA RC COMBH"]
[PlyCount "93"]
[EventDate "2022.12.08"]
[EventType "swiss"]
[EventCountry "ITA"]
[SourceTitle "playchess.com"]
[Source "ChessBase"]
[SourceQuality "1"]
[TimeControl "5400+30"]

1. Nf3 {[%emt 0:00:44]} c5 {[%emt 0:00:39]} 2. c4 {[%emt 0:00:21]} Nc6 {[%emt 0:00:31]} 3. Nc3 {[%emt 0:01:47]} g6 {[%emt 0:01:21]} 4. g3 {[%emt 0:03:28]} Bg7 {[%emt 0:00:10]} 5. Bg2 {[%emt 0:00:18]} e5 {[%emt 0:02:44]} 6. O-O {[%emt 0:00:28]} Nge7 {[%emt 0:00:17]} 7. d3 {[%emt 0:01:08]} O-O {[%emt 0:02:06]} 8. Bg5 {[%emt 0:02:20]} f6 {[%emt 0:00:39]} 9. Bd2 {[%emt 0:00:41]} d6 {[%emt 0:00:24]} 10. Ne1 {[%emt 0:00:23]} Be6 {[%emt 0:00:57]} 11. Nc2 {[%emt 0:00:14]} Qd7 {[%emt 0:02:41]} 12. Ne3 {[%emt 0:01:30]} Bh3 {[%emt 0:01:20]} 13. Ned5 {[%emt 0:00:41]} Bxg2 {[%emt 0:01:19]} 14. Kxg2 {[%emt 0:01:38]} Nxd5 {[%emt 0:02:00]} 15. Nxd5 {[%emt 0:01:23]} Ne7 {[%emt 0:00:25]} 16. e4 {[%emt 0:09:10]} Nxd5 {[%emt 0:00:29]} 17. cxd5 {[%emt 0:01:13]} f5 {[%emt 0:02:33]} 18. Rb1 {[%emt 0:01:00]} Rac8 {[%emt 0:11:32]} 19. f3 {[%emt 0:07:29]} c4 {[%emt 0:07:32]} 20. Be3 {[%emt 0:01:20]} b6 {[%emt 0:07:39]} 21. Rc1 Qb5 {[%emt 0:00:30]} 22. dxc4 Qxb2+ {[%emt 0:00:30]} 23. Rf2 Qa3 {[%emt 0:00:30]} 24. Qb3 Qa6 {[%emt 0:00:30]} 25. Rfc2 Bf6 {[%emt 0:00:30]} 26. a4 Be7 {[%emt 0:00:30]} 27. Qb5 Qxb5 {[%emt 0:00:30]} 28. cxb5 Rxc2+ {[%emt 0:00:30]} 29. Rxc2 Rf7 {[%emt 0:00:30]} 30. Rc6 fxe4 {[%emt 0:00:30]} 31. fxe4 Bf8 {[%emt 0:00:30]} 32. Bd2 Rd7 {[%emt 0:00:30]} 33. Bb4 Kf7 {[%emt 0:00:30]} 34. Kf3 Ke7 {[%emt 0:00:30]} 35. Ke2 Kd8 {[%emt 0:00:30]} 36. a5 Rc7 {[%emt 0:00:30]} 37. axb6 Rxc6 {[%emt 0:00:30]} 38. bxc6 axb6 {[%emt 0:00:30]} 39. Kd3 Kc7 {[%emt 0:00:30]} 40. Kc4 Bh6 {[%emt 0:00:30]} 41. Kb5 Be3 {[%emt 0:00:30]} 42. Ka6 Bc5 {[%emt 0:00:30]} 43. Bd2 Bg1 {[%emt 0:00:30]} 44. g4 h5 {[%emt 0:00:30]} 45. gxh5 gxh5 {[%emt 0:00:30]} 46. h3 Bf2 {[%emt 0:00:30]} 47. Bg5 1-0